[Event "Romanian-ch Open 2022"]
[Site "Eforie Nord"]
[Date "2022.02.25"]
[Round "7.7"]
[White "Manolache, Marius"]
[Black "Secheres, Adrian-Simion"]
[Result "0-1"]
[ECO "E76"]
[WhiteElo "2485"]
[BlackElo "2363"]
[Annotator "ChessBase"]
[PlyCount "136"]
[EventDate "2022.02.20"]
[EventType "swiss"]
[EventCountry "ROU"]
[SourceTitle "playchess.com"]
[Source "ChessBase"]
[SourceQuality "1"]
[TimeControl "40/5400+30:900+30"]

1. d4 {[%emt 0:00:12]} Nf6 {[%emt 0:00:16]} 2. c4 {[%emt 0:00:05]} g6 {[%emt 0:00:17]} 3. Nc3 {[%emt 0:00:07]} Bg7 {[%emt 0:00:06]} 4. e4 {[%emt 0:00:05]} d6 {[%emt 0:00:18]} 5. f4 {[%emt 0:00:14]} c5 {[%emt 0:00:34]} 6. d5 {[%emt 0:00:20]} O-O {[%emt 0:00:26]} 7. Nf3 {[%emt 0:00:09]} e6 {[%emt 0:00:15]} 8. dxe6 {[%emt 0:00:16]} fxe6 {[%emt 0:00:26]} 9. Bd3 {[%emt 0:00:21]} Nc6 {[%emt 0:00:37]} 10. O-O {[%emt 0:00:20]} b6 {[%emt 0:00:31]} 11. Ng5 {[%emt 0:04:39]} Qe7 {[%emt 0:00:22]} 12. Bd2 {[%emt 0:04:29]} Bb7 {[%emt 0:07:49]} 13. Be1 {[%emt 0:17:14]} Nd4 {[%emt 0:08:44]} 14. Kh1 {[%emt 0:02:57]} e5 {[%emt 0:07:20]} 15. f5 {[%emt 0:49:44]} gxf5 {[%emt 0:03:15]} 16. Bh4 {[%emt 0:01:33]} h6 {[%emt 0:24:50]} 17. Nf3 {[%emt 0:00:49]} Qd7 {[%emt 0:09:27]} 18. Bxf6 {[%emt 0:02:37]} Rxf6 {[%emt 0:03:56]} 19. exf5 {[%emt 0:03:35]} Nxf5 {[%emt 0:03:36]} 20. Qe2 {[%emt 0:04:08]} Raf8 {[%emt 0:03:50]} 21. Nd5 {[%emt 0:02:57]} Bxd5 {[%emt 0:04:04]} 22. cxd5 {[%emt 0:00:06]} Ne7 {[%emt 0:02:59]} 23. Qe4 {[%emt 0:01:15]} Qf5 {[%emt 0:03:46]} 24. Qe2 {[%emt 0:00:26]} Qg4 {[%emt 0:00:52]} 25. Rfe1 {[%emt 0:01:11]} Rf4 {[%emt 0:01:19]} 26. Be4 {[%emt 0:01:08]} Kh8 {[%emt 0:01:51]} 27. Rac1 {[%emt 0:01:18]} Ng8 {[%emt 0:01:22]} 28. Kg1 {[%emt 0:01:09]} Nf6 {[%emt 0:01:45]} 29. Nd2 {[%emt 0:00:06]} Qg5 {[%emt 0:02:02]} 30. Rc3 {[%emt 0:00:40]} h5 {[%emt 0:06:08]} 31. Rg3 {[%emt 0:00:21]} Rg4 {[%emt 0:00:32]} 32. Rxg4 {[%emt 0:00:47]} Qxg4 {[%emt 0:01:05]} 33. Qxg4 {[%emt 0:00:39]} hxg4 {[%emt 0:00:31]} 34. Nc4 {[%emt 0:00:15]} Rd8 {[%emt 0:00:21]} 35. a4 {[%emt 0:00:18]} Bh6 {[%emt 0:01:10]} 36. g3 {[%emt 0:00:17]} Kg7 {[%emt 0:00:18]} 37. Kg2 {[%emt 0:00:27]} Kf7 {[%emt 0:00:17]} 38. Re2 {[%emt 0:00:53]} Ke7 {[%emt 0:00:08]} 39. Kg1 {[%emt 0:00:09]} Rf8 {[%emt 0:00:45]} 40. Bg2 {[%emt 0:00:00]} Kd7 {[%emt 0:00:00]} 41. h3 {[%emt 0:08:17]} gxh3 {[%emt 0:01:56]} 42. Bxh3+ {[%emt 0:00:05]} Kc7 {[%emt 0:00:32]} 43. Be6 {[%emt 0:00:15]} a6 {[%emt 0:01:11]} 44. Na3 {[%emt 0:04:40]} Rb8 {[%emt 0:04:06]} 45. Kg2 {[%emt 0:01:04]} Rf8 {[%emt 0:02:32]} 46. Re1 {[%emt 0:01:50]} Bd2 {[%emt 0:02:14]} 47. Re2 {[%emt 0:00:06]} Bc1 {[%emt 0:00:57]} 48. Rf2 {[%emt 0:02:13]} Nh7 {[%emt 0:01:03]} 49. Re2 {[%emt 0:00:19]} Ng5 {[%emt 0:00:20]} 50. Bg4 {[%emt 0:00:04]} e4 {[%emt 0:00:30]} 51. Nc4 {[%emt 0:01:31]} b5 {[%emt 0:01:07]} 52. axb5 {[%emt 0:00:22]} axb5 {[%emt 0:00:04]} 53. Rc2 {[%emt 0:02:09]} bxc4 {[%emt 0:01:20]} 54. Rxc1 {[%emt 0:00:03]} Rb8 {[%emt 0:01:31]} 55. Rc2 {[%emt 0:00:06]} Nf7 {[%emt 0:01:42]} 56. Bf5 {[%emt 0:00:09]} Ne5 {[%emt 0:01:53]} 57. Bxe4 {[%emt 0:00:12]} Nd3 {[%emt 0:00:38]} 58. Bxd3 {[%emt 0:01:36]} cxd3 {[%emt 0:00:01]} 59. Rd2 {[%emt 0:00:06]} c4 {[%emt 0:00:15]} 60. Kf3 {[%emt 0:00:16]} Kb6 {[%emt 0:00:28]} 61. g4 {[%emt 0:00:40]} Kc5 {[%emt 0:00:28]} 62. g5 {[%emt 0:00:40]} Kxd5 {[%emt 0:00:51]} 63. g6 {[%emt 0:00:17]} Kd4 {[%emt 0:00:58]} 64. g7 {[%emt 0:00:39]} c3 {[%emt 0:00:27]} 65. bxc3+ {[%emt 0:00:11]} Kxc3 {[%emt 0:00:06]} 66. Ra2 {[%emt 0:01:48]} d2 {[%emt 0:00:22]} 67. Ra3+ {[%emt 0:00:30]} Kb2 {[%emt 0:00:42]} 68. Rd3 {[%emt 0:00:15]} Kc2 {[%emt 0:00:08]} 0-1

[Event "Romanian-ch Open 2022"]
[Site "Eforie Nord"]
[Date "2022.02.25"]
[Round "7.8"]
[White "Martian, Dragos-Daniel"]
[Black "Anton, Teodor"]
[Result "0-1"]
[ECO "B06"]
[WhiteElo "2270"]
[BlackElo "2457"]
[Annotator "ChessBase"]
[PlyCount "82"]
[EventDate "2022.02.20"]
[EventType "swiss"]
[EventCountry "ROU"]
[SourceTitle "playchess.com"]
[Source "ChessBase"]
[SourceQuality "1"]
[TimeControl "40/5400+30:900+30"]

1. e4 {[%emt 0:06:27]} g6 {[%emt 0:00:21]} 2. d4 {[%emt 0:01:04]} Bg7 {[%emt 0:00:05]} 3. Nc3 {[%emt 0:00:48]} d6 {[%emt 0:00:10]} 4. Be3 {[%emt 0:00:45]} a6 {[%emt 0:00:06]} 5. Qd2 {[%emt 0:08:14]} b5 {[%emt 0:00:09]} 6. Bd3 {[%emt 0:00:19]} Bb7 {[%emt 0:01:26]} 7. a4 {[%emt 0:00:19]} b4 {[%emt 0:01:06]} 8. Nce2 {[%emt 0:00:11]} a5 {[%emt 0:00:36]} 9. Nf3 {[%emt 0:04:16]} Nf6 {[%emt 0:05:07]} 10. Ng3 {[%emt 0:02:09]} Nbd7 {[%emt 0:04:47]} 11. h4 {[%emt 0:04:27]} Ng4 {[%emt 0:04:14]} 12. h5 {[%emt 0:03:07]} Nxe3 {[%emt 0:02:05]} 13. Qxe3 {[%emt 0:01:39]} e6 {[%emt 0:02:37]} 14. O-O-O {[%emt 0:04:38]} Nb6 {[%emt 0:04:35]} 15. e5 {[%emt 0:10:26]} Nd5 {[%emt 0:03:54]} 16. Qd2 {[%emt 0:00:56]} Qd7 {[%emt 0:00:46]} 17. h6 {[%emt 0:12:12]} Bf8 {[%emt 0:02:56]} 18. b3 {[%emt 0:03:21]} Be7 {[%emt 0:02:17]} 19. Ne4 {[%emt 0:00:55]} O-O {[%emt 0:01:01]} 20. Kb1 {[%emt 0:02:13]} f5 {[%emt 0:05:26]} 21. exf6 {[%emt 0:00:36]} Bxf6 {[%emt 0:00:38]} 22. Rde1 {[%emt 0:04:54]} Bh8 {[%emt 0:04:56]} 23. Neg5 {[%emt 0:02:28]} Nc3+ {[%emt 0:16:29]} 24. Kc1 {[%emt 0:00:48]} Rf6 {[%emt 0:00:27]} 25. Be4 {[%emt 0:02:34]} Nxe4 {[%emt 0:03:02]} 26. Nxe4 {[%emt 0:00:07]} Rf5 {[%emt 0:01:05]} 27. Nh4 {[%emt 0:13:34]} Rd5 {[%emt 0:06:07]} 28. Nxg6 {[%emt 0:00:18]} hxg6 {[%emt 0:01:13]} 29. h7+ {[%emt 0:00:12]} Kf8 {[%emt 0:03:09]} 30. Nf6 {[%emt 0:00:37]} Qg7 {[%emt 0:02:46]} 31. Nxd5 {[%emt 0:01:25]} Bxd5 {[%emt 0:00:05]} 32. Rh4 {[%emt 0:02:22]} Ke7 {[%emt 0:03:54]} 33. Qg5+ {[%emt 0:00:40]} Kd7 {[%emt 0:00:15]} 34. Re3 {[%emt 0:00:21]} Rf8 {[%emt 0:00:45]} 35. Rg3 {[%emt 0:01:27]} Rf6 {[%emt 0:03:28]} 36. Rgg4 {[%emt 0:01:23]} c5 {[%emt 0:02:37]} 37. Rh6 {[%emt 0:01:24]} Rxf2 {[%emt 0:03:07]} 38. Rxg6 {[%emt 0:03:42]} Rf1+ {[%emt 0:01:04]} 39. Kb2 {[%emt 0:01:22]} Qxd4+ {[%emt 0:01:11]} 40. Rxd4 {[%emt 0:00:00]} Bxd4+ {[%emt 0:00:00]} 41. c3 {[%emt 0:01:13]} Bxc3+ {[%emt 0:00:17]} 0-1

[Event "Romanian-ch Open 2022"]
[Site "Eforie Nord"]
[Date "2022.02.25"]
[Round "7.9"]
[White "Creanga, Robert-Ionut"]
[Black "Stoleriu, George"]
[Result "1/2-1/2"]
[ECO "A65"]
[WhiteElo "2115"]
[BlackElo "2419"]
[Annotator "ChessBase"]
[PlyCount "90"]
[EventDate "2022.02.20"]
[EventType "swiss"]
[EventCountry "ROU"]
[SourceTitle "playchess.com"]
[Source "ChessBase"]
[SourceQuality "1"]
[TimeControl "40/5400+30:900+30"]

1. d4 {[%emt 0:00:28]} Nf6 {[%emt 0:00:03]} 2. c4 {[%emt 0:00:37]} g6 {[%emt 0:00:05]} 3. f3 {[%emt 0:03:59]} Bg7 {[%emt 0:00:15]} 4. e4 {[%emt 0:00:23]} d6 {[%emt 0:00:04]} 5. Nc3 {[%emt 0:00:40]} O-O {[%emt 0:00:15]} 6. Nge2 {[%emt 0:01:32]} c5 {[%emt 0:00:44]} 7. d5 {[%emt 0:01:42]} e6 {[%emt 0:09:22]} 8. Ng3 {[%emt 0:01:19]} exd5 {[%emt 0:05:02]} 9. cxd5 {[%emt 0:00:33]} h5 {[%emt 0:01:19]} 10. Bg5 {[%emt 0:11:59]} a6 {[%emt 0:06:37]} 11. a4 {[%emt 0:01:55]} Qb6 {[%emt 0:01:22]} 12. Qc1 {[%emt 0:05:41]} Nh7 {[%emt 0:03:27]} 13. a5 {[%emt 0:03:27]} Qc7 {[%emt 0:01:20]} 14. Bh4 {[%emt 0:16:45]} Nd7 {[%emt 0:18:28]} 15. Be2 {[%emt 0:03:53]} Bd4 {[%emt 0:01:06]} 16. Nf1 {[%emt 0:12:13]} Re8 {[%emt 0:06:09]} 17. Bf2 {[%emt 0:03:57]} f5 {[%emt 0:06:30]} 18. Nd2 {[%emt 0:01:44]} Ne5 {[%emt 0:09:22]} 19. Nd1 {[%emt 0:06:26]} Qg7 {[%emt 0:04:19]} 20. O-O {[%emt 0:02:43]} Bd7 {[%emt 0:01:37]} 21. Nb3 {[%emt 0:04:36]} Bxf2+ {[%emt 0:02:08]} 22. Nxf2 {[%emt 0:00:24]} Nf6 {[%emt 0:00:54]} 23. Nd2 {[%emt 0:03:14]} g5 {[%emt 0:03:55]} 24. Ra3 {[%emt 0:03:54]} Re7 {[%emt 0:02:23]} 25. Rb3 {[%emt 0:01:07]} f4 {[%emt 0:11:31]} 26. Nc4 {[%emt 0:00:56]} Bb5 {[%emt 0:01:25]} 27. Rxb5 {[%emt 0:02:00]} Nxc4 {[%emt 0:00:21]} 28. Rb3 {[%emt 0:01:18]} Ne3 {[%emt 0:00:41]} 29. Re1 {[%emt 0:00:52]} g4 {[%emt 0:03:06]} 30. Nd1 {[%emt 0:00:38]} Nxg2 {[%emt 0:00:53]} 31. Kxg2 {[%emt 0:00:26]} gxf3+ {[%emt 0:00:03]} 32. Kxf3 {[%emt 0:00:34]} Nxe4 {[%emt 0:00:36]} 33. Nf2 {[%emt 0:00:36]} Ng5+ {[%emt 0:00:31]} 34. Kg2 {[%emt 0:00:36]} f3+ {[%emt 0:00:45]} 35. Kh1 {[%emt 0:00:49]} Rxe2 {[%emt 0:00:42]} 36. Rxe2 {[%emt 0:01:35]} fxe2 {[%emt 0:00:01]} 37. Rg3 {[%emt 0:00:09]} Rf8 {[%emt 0:01:00]} 38. Qe3 {[%emt 0:01:25]} Kh8 {[%emt 0:00:35]} 39. Qxe2 {[%emt 0:00:41]} Qh6 {[%emt 0:00:22]} 40. Qe3 {[%emt 0:00:00]} Rxf2 {[%emt 0:00:00]} 41. Rxg5 {[%emt 0:05:08]} Rf1+ {[%emt 0:11:40]} 42. Kg2 {[%emt 0:00:18]} Rf8 {[%emt 0:00:06]} 43. Qc3+ {[%emt 0:01:01]} Kh7 {[%emt 0:00:24]} 44. Qd3+ {[%emt 0:00:11]} Kh8 {[%emt 0:00:02]} 45. Qc3+ {[%emt 0:00:09]} Kh7 {[%emt 0:00:30]} 1/2-1/2

[Event "Romanian-ch Open 2022"]
[Site "Eforie Nord"]
[Date "2022.02.25"]
[Round "7.10"]
[White "Istratescu, Andrei"]
[Black "Filip, Andrei"]
[Result "1/2-1/2"]
[ECO "C42"]
[WhiteElo "2470"]
[BlackElo "2216"]
[Annotator "ChessBase"]
[PlyCount "49"]
[EventDate "2022.02.20"]
[EventType "swiss"]
[EventCountry "ROU"]
[SourceTitle "playchess.com"]
[Source "ChessBase"]
[SourceQuality "1"]
[TimeControl "40/5400+30:900+30"]

1. e4 {[%emt 0:00:41]} e5 {[%emt 0:00:08]} 2. Nf3 {[%emt 0:00:08]} Nf6 {[%emt 0:00:06]} 3. Nxe5 {[%emt 0:00:43]} d6 {[%emt 0:00:04]} 4. Nf3 {[%emt 0:00:07]} Nxe4 {[%emt 0:00:05]} 5. d4 {[%emt 0:00:03]} d5 {[%emt 0:00:05]} 6. Bd3 {[%emt 0:00:04]} Bd6 {[%emt 0:00:08]} 7. O-O {[%emt 0:00:29]} O-O {[%emt 0:00:07]} 8. c4 {[%emt 0:00:47]} c6 {[%emt 0:00:03]} 9. Qc2 {[%emt 0:02:44]} Na6 {[%emt 0:00:09]} 10. a3 {[%emt 0:00:05]} Bg4 {[%emt 0:00:11]} 11. Ne5 {[%emt 0:06:38]} Bf5 {[%emt 0:00:06]} 12. Be3 {[%emt 0:22:21]} Nac5 {[%emt 0:01:35]} 13. dxc5 {[%emt 0:00:54]} Bxe5 {[%emt 0:00:06]} 14. cxd5 {[%emt 0:04:45]} cxd5 {[%emt 0:02:01]} 15. Nc3 {[%emt 0:00:33]} Re8 {[%emt 0:37:56]} 16. Nxe4 {[%emt 0:07:07]} Bxe4 {[%emt 0:00:45]} 17. Bxe4 {[%emt 0:03:19]} dxe4 {[%emt 0:00:07]} 18. Rad1 {[%emt 0:00:34]} Qh4 {[%emt 0:05:51]} 19. g3 {[%emt 0:05:22]} Qg4 {[%emt 0:01:46]} 20. Rd2 {[%emt 0:02:49]} h5 {[%emt 0:07:13]} 21. Qd1 {[%emt 0:01:13]} Qg6 {[%emt 0:04:44]} 22. f4 {[%emt 0:04:26]} exf3 {[%emt 0:00:55]} 23. Qxf3 {[%emt 0:02:01]} h4 {[%emt 0:07:09]} 24. Bf2 {[%emt 0:02:32]} hxg3 {[%emt 0:04:10]} 25. hxg3 {[%emt 0:00:13]} 1/2-1/2

[Event "Romanian-ch Open 2022"]
[Site "Eforie Nord"]
[Date "2022.02.25"]
[Round "7.11"]
[White "Ghimpu, Samuel-Timotei"]
[Black "Nastore, Pavel-Alexandru"]
[Result "1-0"]
[ECO "B50"]
[WhiteElo "2420"]
[BlackElo "2306"]
[Annotator "ChessBase"]
[PlyCount "108"]
[EventDate "2022.02.20"]
[EventType "swiss"]
[EventCountry "ROU"]
[SourceTitle "playchess.com"]
[Source "ChessBase"]
[SourceQuality "1"]
[TimeControl "40/5400+30:900+30"]

1. e4 {[%emt 0:00:29]} c5 {[%emt 0:00:09]} 2. Nf3 {[%emt 0:00:10]} d6 {[%emt 0:00:13]} 3. c3 {[%emt 0:00:35]} Nf6 {[%emt 0:00:24]} 4. Be2 {[%emt 0:00:08]} e6 {[%emt 0:03:48]} 5. O-O {[%emt 0:01:47]} Be7 {[%emt 0:00:38]} 6. Re1 {[%emt 0:02:32]} O-O {[%emt 0:00:20]} 7. Bf1 {[%emt 0:00:07]} Nbd7 {[%emt 0:05:33]} 8. d4 {[%emt 0:01:05]} a6 {[%emt 0:07:10]} 9. e5 {[%emt 0:02:49]} Ne8 {[%emt 0:10:51]} 10. Nbd2 {[%emt 0:10:08]} b6 {[%emt 0:17:13]} 11. Ne4 {[%emt 0:02:11]} cxd4 {[%emt 0:01:26]} 12. cxd4 {[%emt 0:09:50]} Bb7 {[%emt 0:00:48]} 13. Bf4 {[%emt 0:00:38]} dxe5 {[%emt 0:00:24]} 14. dxe5 {[%emt 0:00:08]} Nc5 {[%emt 0:00:57]} 15. Nd6 {[%emt 0:13:15]} Bd5 {[%emt 0:01:18]} 16. Nxe8 {[%emt 0:09:44]} Rxe8 {[%emt 0:02:57]} 17. b4 {[%emt 0:00:29]} Nd7 {[%emt 0:07:16]} 18. Qd4 {[%emt 0:01:25]} Qc7 {[%emt 0:13:22]} 19. Nd2 {[%emt 0:01:43]} a5 {[%emt 0:08:34]} 20. a3 {[%emt 0:02:11]} axb4 {[%emt 0:07:10]} 21. axb4 {[%emt 0:39:36]} Rxa1 {[%emt 0:00:56]} 22. Rxa1 {[%emt 0:00:00]} Ra8 {[%emt 0:00:17]} 23. Rxa8+ Bxa8 {[%emt 0:00:01]} 24. Ne4 {[%emt 0:00:00]} Qc6 {[%emt 0:04:06]} 25. Nc3 {[%emt 0:00:00]} f6 {[%emt 0:03:31]} 26. b5 {[%emt 0:00:00]} Qb7 {[%emt 0:00:10]} 27. Qc4 {[%emt 0:00:00]} Kf7 {[%emt 0:00:19]} 28. exf6 {[%emt 0:00:00]} Nxf6 {[%emt 0:00:08]} 29. Be3 {[%emt 0:00:00]} Bd6 {[%emt 0:01:37]} 30. f3 {[%emt 0:00:00]} Qc7 {[%emt 0:02:32]} 31. Qxc7+ {[%emt 0:00:00]} Bxc7 {[%emt 0:00:01]} 32. Na4 {[%emt 0:00:00]} Nd5 {[%emt 0:00:09]} 33. Bd4 {[%emt 0:00:00]} e5 {[%emt 0:01:00]} 34. Bf2 {[%emt 0:00:00]} Ke6 {[%emt 0:01:09]} 35. Bd3 {[%emt 0:00:00]} h6 {[%emt 0:00:52]} 36. Be4 {[%emt 0:00:00]} Bd8 {[%emt 0:00:27]} 37. Kf1 {[%emt 0:00:00]} Kd6 {[%emt 0:00:35]} 38. g3 {[%emt 0:00:00]} Bb7 {[%emt 0:00:35]} 39. Ke2 {[%emt 0:00:00]} Bc8 {[%emt 0:00:19]} 40. Bxd5 {[%emt 0:00:00]} Kxd5 {[%emt 0:00:00]} 41. Bxb6 {[%emt 0:00:00]} Bd7 {[%emt 0:04:08]} 42. Nc3+ {[%emt 0:00:00]} Kc4 {[%emt 0:00:03]} 43. Bxd8 {[%emt 0:00:00]} Kxc3 {[%emt 0:00:05]} 44. b6 {[%emt 0:00:00]} Bc6 {[%emt 0:00:12]} 45. Ke3 {[%emt 0:02:09]} Kc4 {[%emt 0:00:10]} 46. f4 {[%emt 0:00:06]} Kd5 {[%emt 0:06:28]} 47. f5 {[%emt 0:00:21]} h5 {[%emt 0:01:40]} 48. Be7 {[%emt 0:01:39]} e4 {[%emt 0:05:16]} 49. Kf4 {[%emt 0:01:38]} e3 {[%emt 0:00:05]} 50. Kxe3 {[%emt 0:01:22]} Ke5 {[%emt 0:00:04]} 51. Bf8 {[%emt 0:00:06]} Kxf5 {[%emt 0:00:04]} 52. Bxg7 {[%emt 0:00:04]} Kg4 {[%emt 0:00:04]} 53. Kd4 {[%emt 0:00:40]} Kh3 {[%emt 0:00:24]} 54. Be5 {[%emt 0:01:05]} Bf3 {[%emt 0:04:32]} 1-0

[Event "Romanian-ch Open 2022"]
[Site "Eforie Nord"]
[Date "2022.02.25"]
[Round "7.12"]
[White "Badea, Bela"]
[Black "Dobre, Claudiu-Cristian"]
[Result "1-0"]
[ECO "D02"]
[WhiteElo "2413"]
[BlackElo "2298"]
[Annotator "ChessBase"]
[PlyCount "38"]
[EventDate "2022.02.20"]
[EventType "swiss"]
[EventCountry "ROU"]
[SourceTitle "playchess.com"]
[Source "ChessBase"]
[SourceQuality "1"]
[TimeControl "40/5400+30:900+30"]

1. Nf3 {[%emt 0:00:02]} d5 {[%emt 0:00:07]} 2. g3 {[%emt 0:00:03]} c6 {[%emt 0:00:12]} 3. Bg2 {[%emt 0:00:07]} Bg4 {[%emt 0:00:05]} 4. O-O {[%emt 0:00:26]} Nd7 {[%emt 0:00:06]} 5. d4 {[%emt 0:00:09]} Ngf6 {[%emt 0:00:35]} 6. b3 {[%emt 0:06:51]} e6 {[%emt 0:10:25]} 7. Bb2 {[%emt 0:00:10]} Be7 {[%emt 0:01:42]} 8. Nbd2 {[%emt 0:00:46]} h6 {[%emt 0:00:25]} 9. Ne5 {[%emt 0:15:49]} Bf5 {[%emt 0:01:09]} 10. f4 {[%emt 0:04:55]} Nxe5 {[%emt 0:46:55]} 11. fxe5 {[%emt 0:00:14]} Ng4 {[%emt 0:00:39]} 12. Rf3 {[%emt 0:00:55]} Bg5 {[%emt 0:05:32]} 13. Nf1 {[%emt 0:00:09]} Be4 {[%emt 0:00:51]} 14. Rc3 {[%emt 0:08:13]} Qb6 {[%emt 0:06:07]} 15. e3 {[%emt 0:00:22]} Bxg2 {[%emt 0:00:47]} 16. Kxg2 {[%emt 0:00:02]} h5 {[%emt 0:00:16]} 17. h3 {[%emt 0:04:35]} Nh6 {[%emt 0:00:19]} 18. Qxh5 {[%emt 0:00:16]} Be7 {[%emt 0:00:22]} 19. Rd3 {[%emt 0:03:47]} O-O-O {[%emt 0:02:25]} 1-0

[Event "Romanian-ch Open 2022"]
[Site "Eforie Nord"]
[Date "2022.02.25"]
[Round "7.13"]
[White "Manea, Alexandru"]
[Black "Voiteanu, Gabriel"]
[Result "1-0"]
[ECO "D77"]
[WhiteElo "2355"]
[BlackElo "2207"]
[Annotator "ChessBase"]
[PlyCount "123"]
[EventDate "2022.02.20"]
[EventType "swiss"]
[EventCountry "ROU"]
[SourceTitle "playchess.com"]
[Source "ChessBase"]
[SourceQuality "1"]
[TimeControl "40/5400+30:900+30"]

1. d4 {[%emt 0:06:26]} d5 {[%emt 0:00:15]} 2. Nf3 {[%emt 0:00:36]} Nf6 {[%emt 0:00:34]} 3. g3 {[%emt 0:00:10]} g6 {[%emt 0:01:36]} 4. Bg2 {[%emt 0:00:30]} Bg7 {[%emt 0:00:21]} 5. O-O {[%emt 0:00:07]} O-O {[%emt 0:00:08]} 6. c4 {[%emt 0:00:04]} dxc4 {[%emt 0:00:40]} 7. Na3 {[%emt 0:00:11]} Na6 {[%emt 0:00:23]} 8. Nxc4 {[%emt 0:00:49]} c5 {[%emt 0:00:11]} 9. b3 {[%emt 0:03:10]} Be6 {[%emt 0:07:34]} 10. Ng5 {[%emt 0:06:41]} Bd5 {[%emt 0:01:53]} 11. e4 {[%emt 0:09:06]} Bxc4 {[%emt 0:13:44]} 12. bxc4 {[%emt 0:00:04]} h6 {[%emt 0:16:16]} 13. e5 {[%emt 0:01:58]} hxg5 {[%emt 0:10:06]} 14. exf6 {[%emt 0:00:18]} Bxf6 {[%emt 0:00:10]} 15. Bxb7 {[%emt 0:00:07]} Qxd4 {[%emt 0:04:11]} 16. Qxd4 {[%emt 0:00:30]} Bxd4 {[%emt 0:00:18]} 17. Bxg5 {[%emt 0:00:09]} f6 {[%emt 0:22:40]} 18. Be3 {[%emt 0:00:53]} Nb4 {[%emt 0:01:18]} 19. Bxa8 {[%emt 0:03:49]} Rxa8 {[%emt 0:00:24]} 20. Rad1 {[%emt 0:07:23]} e5 {[%emt 0:01:11]} 21. a3 {[%emt 0:01:17]} Nc2 {[%emt 0:02:32]} 22. Bc1 {[%emt 0:00:17]} Rb8 {[%emt 0:00:38]} 23. Rd2 {[%emt 0:02:27]} Na1 {[%emt 0:00:05]} 24. Kg2 {[%emt 0:03:29]} f5 {[%emt 0:02:08]} 25. Ra2 {[%emt 0:02:12]} Nb3 {[%emt 0:01:08]} 26. Bg5 {[%emt 0:06:17]} a5 {[%emt 0:00:41]} 27. a4 {[%emt 0:00:39]} Rb4 {[%emt 0:01:26]} 28. Rb1 {[%emt 0:00:34]} Bc3 {[%emt 0:02:32]} 29. Bd8 {[%emt 0:09:39]} Rb8 {[%emt 0:09:11]} 30. Bc7 {[%emt 0:02:58]} Rb7 {[%emt 0:00:18]} 31. Ra3 {[%emt 0:03:32]} Rxc7 {[%emt 0:00:43]} 32. Raxb3 {[%emt 0:00:31]} Bb4 {[%emt 0:00:17]} 33. Rd3 {[%emt 0:00:08]} e4 {[%emt 0:00:36]} 34. Rd6 {[%emt 0:01:24]} Kf7 {[%emt 0:00:50]} 35. Rbd1 {[%emt 0:00:05]} Bc3 {[%emt 0:00:11]} 36. Rd7+ {[%emt 0:00:11]} Rxd7 {[%emt 0:00:04]} 37. Rxd7+ {[%emt 0:00:05]} Ke6 {[%emt 0:00:02]} 38. Rd5 {[%emt 0:00:09]} Bd4 {[%emt 0:00:19]} 39. Kf1 {[%emt 0:00:10]} g5 {[%emt 0:01:39]} 40. Ke2 {[%emt 0:00:00]} g4 {[%emt 0:00:00]} 41. Kf1 {[%emt 0:02:12]} Kf6 {[%emt 0:01:16]} 42. Kg1 {[%emt 0:00:52]} Ke6 {[%emt 0:00:21]} 43. Kg2 {[%emt 0:00:04]} Kf6 {[%emt 0:00:17]} 44. Rd8 {[%emt 0:01:59]} Ke5 {[%emt 0:00:32]} 45. Re8+ {[%emt 0:00:18]} Kf6 {[%emt 0:01:34]} 46. Ra8 {[%emt 0:00:19]} Bc3 {[%emt 0:01:12]} 47. h3 {[%emt 0:00:19]} Ke5 {[%emt 0:04:02]} 48. Rd8 {[%emt 0:00:26]} gxh3+ {[%emt 0:03:36]} 49. Kxh3 {[%emt 0:00:05]} e3 {[%emt 0:00:18]} 50. fxe3 {[%emt 0:01:38]} Ke4 {[%emt 0:01:01]} 51. Rd5 {[%emt 0:00:11]} Kxe3 {[%emt 0:04:22]} 52. Rxc5 {[%emt 0:01:06]} f4 {[%emt 0:01:53]} 53. gxf4 {[%emt 0:00:27]} Kxf4 {[%emt 0:00:04]} 54. Kg2 {[%emt 0:00:06]} Ke4 {[%emt 0:00:22]} 55. Rd5 {[%emt 0:00:08]} Bb4 {[%emt 0:00:44]} 56. Kg3 {[%emt 0:05:09]} Be7 {[%emt 0:01:06]} 57. Kg4 {[%emt 0:01:13]} Bf6 {[%emt 0:00:25]} 58. Rxa5 {[%emt 0:00:30]} Kd4 {[%emt 0:00:19]} 59. Rf5 {[%emt 0:00:10]} Be7 {[%emt 0:00:57]} 60. a5 {[%emt 0:00:12]} Kxc4 {[%emt 0:00:13]} 61. a6 {[%emt 0:00:07]} Bc5 {[%emt 0:00:02]} 62. Rxc5+ {[%emt 0:39:54]} 1-0

[Event "Romanian-ch Open 2022"]
[Site "Eforie Nord"]
[Date "2022.02.25"]
[Round "7.14"]
[White "Coca, Cristi-Iulian"]
[Black "Vajda, Albert"]
[Result "1/2-1/2"]
[ECO "C53"]
[WhiteElo "2147"]
[BlackElo "2351"]
[Annotator "ChessBase"]
[PlyCount "51"]
[EventDate "2022.02.20"]
[EventType "swiss"]
[EventCountry "ROU"]
[SourceTitle "playchess.com"]
[Source "ChessBase"]
[SourceQuality "1"]
[TimeControl "40/5400+30:900+30"]

1. e4 {[%emt 0:01:58]} e5 {[%emt 0:00:12]} 2. Nf3 {[%emt 0:00:09]} Nc6 {[%emt 0:00:11]} 3. Bc4 {[%emt 0:01:43]} Bc5 {[%emt 1:31:37]} 4. c3 {[%emt 0:01:01]} Bb6 {[%emt 0:00:00]} 5. O-O {[%emt 0:01:04]} Nf6 {[%emt 0:00:00]} 6. d4 {[%emt 0:03:28]} Qe7 {[%emt 0:00:00]} 7. Bg5 {[%emt 0:07:45]} d6 {[%emt 0:00:00]} 8. Bb5 {[%emt 0:10:23]} Bd7 {[%emt 0:00:00]} 9. dxe5 {[%emt 0:03:17]} dxe5 {[%emt 0:00:00]} 10. Nbd2 {[%emt 0:01:53]} h6 {[%emt 0:00:00]} 11. Bh4 {[%emt 0:01:39]} O-O-O {[%emt 0:00:00]} 12. Qe2 {[%emt 0:07:24]} g5 {[%emt 0:00:00]} 13. Bg3 {[%emt 0:01:24]} Nh5 {[%emt 0:00:00]} 14. Bxc6 {[%emt 0:03:23]} Bxc6 {[%emt 0:00:00]} 15. Nc4 {[%emt 0:05:55]} Nxg3 {[%emt 0:00:00]} 16. hxg3 {[%emt 0:00:17]} f6 {[%emt 0:00:00]} 17. a4 {[%emt 0:08:10]} Bc5 {[%emt 0:00:00]} 18. b4 {[%emt 0:00:30]} Bd6 {[%emt 0:00:00]} 19. b5 {[%emt 0:02:28]} Bd7 {[%emt 0:00:00]} 20. a5 {[%emt 0:00:59]} Bc5 {[%emt 0:00:00]} 21. Rfb1 {[%emt 0:14:55]} c6 {[%emt 0:00:00]} 22. Ne3 {[%emt 0:09:55]} cxb5 {[%emt 0:00:00]} 23. Nd5 {[%emt 0:01:24]} Qe6 {[%emt 0:00:00]} 24. c4 {[%emt 0:01:40]} Bc6 {[%emt 0:00:00]} 25. cxb5 {[%emt 0:02:25]} Bxd5 {[%emt 0:00:00]} 26. Rc1 {[%emt 0:04:23]} 1/2-1/2